bitfinex-derivatives/quotes_BTCF0:USTF0_20240903
["timestamp","ask_amount","ask_price","bid_price","bid_amount"]
[1725388394170,0.1459158,58008.0,58007.0,0.621454]
[1725388395167,0.0559158,58008.0,58007.0,0.621454]
[1725388397375,0.0559158,58008.0,58007.0,0.449018]
[1725388397673,0.0559158,58008.0,58007.0,0.088218]
[1725388398069,0.1421318,58008.0,58007.0,0.088218]
[1725388398375,0.4439635,58008.0,58007.0,0.002]
[1725388398765,0.5539635,58008.0,58007.0,0.002]
[1725388400673,0.439216,58008.0,58007.0,0.002]
[1725388401380,0.45539404,58008.0,58007.0,0.002]
[1725388401876,0.113,58008.0,58007.0,0.689018]
[1725388402068,0.12917516,58008.0,58007.0,0.775236]
[1725388402269,0.003,58008.0,58007.0,1.378614]
[1725388402471,0.004,58021.0,58007.0,1.378614]
[1725388402472,0.004,58021.0,58009.0,0.086214]
[1725388402675,0.004,58021.0,58019.0,0.0862]
[1725388402676,0.01617378,58020.0,58019.0,0.0862]
[1725388402974,0.13617378,58020.0,58019.0,0.0862]
[1725388403191,0.13617378,58020.0,58019.0,0.3262]
[1725388403776,0.01617378,58020.0,58019.0,0.3262]
[1725388404577,0.002,58020.0,58019.0,0.3272]
[1725388406076,0.002,58020.0,58019.0,0.3282]
[1725388406869,0.002,58020.0,58019.0,0.4218]
[1725388408771,0.05490842,58020.0,58019.0,0.4218]
[1725388410180,0.05490842,58020.0,58019.0,0.3282]
[1725388410578,0.05490937,58020.0,58019.0,0.3282]
[1725388414988,0.05490937,58020.0,58019.0,0.4144]
[1725388415882,0.002,58020.0,58019.0,0.4144]
[1725388423484,0.002,58020.0,58019.0,0.5006]
[1725388423686,0.002,58020.0,58019.0,0.4144]
[1725388424795,0.002,58020.0,58019.0,1.01768]
[1725388424982,0.004,58033.0,58032.0,0.17236]
[1725388425180,0.0877,58042.0,58041.0,0.086167]
[1725388425784,0.09893284,58042.0,58041.0,0.086167]
[1725388426692,0.01123284,58042.0,58041.0,0.172334]
[1725388426894,0.3608,58056.0,58047.0,0.086157]
[1725388426895,0.086151,58052.0,58047.0,0.086157]
[1725388427099,0.086151,58052.0,58049.0,0.24]
[1725388427592,0.09496554,58051.0,58049.0,0.24]
[1725388428503,0.09496554,58051.0,58048.0,0.086156]
[1725388428692,0.09496554,58051.0,58049.0,0.001]
[1725388428997,0.09496554,58051.0,58049.0,0.087155]
[1725388429408,0.842954,58050.0,58049.0,0.001]
[1725388429699,1.203754,58050.0,58049.0,0.002]
[1725388429901,1.803754,58050.0,58049.0,0.002]
[1725388430294,0.3608,58050.0,58049.0,0.088155]
[1725388430994,0.3608,58050.0,58049.0,0.087155]
[1725388431193,0.3608,58050.0,58049.0,0.088155]
[1725388431390,0.446954,58050.0,58049.0,0.002]
[1725388431695,0.686954,58050.0,58049.0,0.002]
[1725388431892,0.446954,58050.0,58049.0,0.002]
[1725388433196,0.3608,58050.0,58049.0,0.088155]
[1725388435589,0.3608,58050.0,58049.0,0.002]
[1725388435792,0.446954,58050.0,58049.0,0.002]
[1725388436890,0.086154,58050.0,58049.0,0.002]
[1725388437297,0.00876727,58052.0,58051.0,0.086152]
[1725388437502,0.186151,58052.0,58051.0,0.24]
[1725388437706,0.19492451,58052.0,58051.0,0.24]
[1725388438600,0.19492451,58052.0,58051.0,0.241]
[1725388439005,0.19566738,58055.0,58051.0,0.241]
[1725388439006,0.01108738,58055.0,58051.0,0.241]
[1725388439195,0.3608,58056.0,58055.0,0.086146]
[1725388440716,0.37158654,58056.0,58055.0,0.086146]
[1725388440903,0.01078654,58056.0,58055.0,0.446946]
[1725388441205,0.00881324,58061.0,58060.0,0.086139]
[1725388441398,0.0886,58063.0,58062.0,0.086136]
[1725388441701,0.446929,58067.0,58062.0,0.086136]
[1725388441906,0.49788138,58067.0,58066.0,0.24]
[1725388442296,0.4204932,58067.0,58062.0,0.24]
[1725388442498,0.0004,58063.0,58062.0,0.241]
[1725388443208,0.086534,58063.0,58062.0,0.241]
[1725388443610,0.0004,58063.0,58062.0,0.241]
[1725388443796,0.0004,58063.0,58062.0,0.327136]
[1725388443995,0.0004,58063.0,58062.0,0.326136]
[1725388444602,0.0004,58063.0,58062.0,0.327136]
[1725388445008,0.0004,58063.0,58062.0,0.087136]
[1725388445608,0.0004,58063.0,58062.0,0.088136]
[1725388445914,0.05327655,58063.0,58062.0,0.088136]
[1725388446104,0.18939314,58063.0,58062.0,0.088136]
[1725388446301,1.25609055,58063.0,58062.0,0.002]
[1725388446505,1.25609055,58063.0,58055.0,0.36105837]
[1725388446506,0.17229,58056.0,58055.0,0.00025837]
[1725388446703,0.85022155,58056.0,58055.0,0.00025837]
[1725388446904,0.91201049,58056.0,58055.0,0.00025837]
[1725388447910,0.93636655,58056.0,58055.0,0.00125837]
[1725388448616,0.93736655,58056.0,58055.0,0.00225837]
[1725388449310,0.16427655,58056.0,58055.0,0.08840437]
[1725388449514,0.05427655,58056.0,58055.0,0.08840437]
[1725388450007,0.05427655,58056.0,58055.0,0.17455037]
[1725388451010,0.05427655,58056.0,58055.0,0.08840437]
[1725388451408,0.18991189,58056.0,58055.0,0.08840437]
[1725388451708,0.14042155,58056.0,58055.0,0.00225837]
[1725388453005,0.087545,58056.0,58055.0,0.00225837]
[1725388453208,0.0014,58056.0,58055.0,0.00225837]
[1725388453407,0.0014,58056.0,58055.0,0.08840437]
[1725388453606,0.0014,58056.0,58055.0,0.17880437]
[1725388454509,0.0014,58056.0,58055.0,0.08840437]
[1725388460322,0.0014,58056.0,58055.0,0.17455037]
[1725388460620,0.0014,58056.0,58055.0,0.26069637]
[1725388460812,0.0014,58056.0,58055.0,0.31115191]
[1725388461018,0.0014,58056.0,58055.0,1.37645637]
[1725388461213,0.24,58077.0,58069.0,0.17225]
[1725388461214,0.28300774,58076.0,58069.0,0.17225]
[1725388461416,0.086119,58074.0,58073.0,0.086118]
[1725388461617,0.14898456,58074.0,58073.0,0.086118]
[1725388462118,0.14898456,58074.0,58069.0,0.3608]
[1725388462119,0.086123,58071.0,58070.0,0.086124]
[1725388462322,0.13898856,58071.0,58070.0,0.086124]
[1725388462507,0.13798894,58071.0,58070.0,0.086124]
[1725388462710,0.05286594,58071.0,58070.0,0.086124]
[1725388463522,0.086124,58070.0,58069.0,0.00096]
[1725388463711,0.085137,58061.0,58060.0,0.004]
[1725388463909,0.65366646,58061.0,58053.0,0.3608]
[1725388464121,0.086148,58054.0,58053.0,0.3608]
[1725388464425,0.13901446,58054.0,58053.0,0.3608]
[1725388464619,0.05288439,58054.0,58048.0,0.086155]
[1725388464919,0.086151,58052.0,58049.0,0.326155]
[1725388465420,0.085151,58052.0,58049.0,0.326155]
[1725388465617,0.085151,58052.0,58049.0,0.086155]
[1725388466317,0.086153,58051.0,58048.0,0.001]
[1725388466521,0.0004,58049.0,58048.0,0.001]
[1725388466724,0.086555,58049.0,58048.0,0.001]
[1725388467316,0.602355,58049.0,58048.0,0.001]
[1725388467514,0.602355,58049.0,58045.0,0.00025837]
[1725388467515,0.17232,58046.0,58045.0,0.00025837]
[1725388467726,0.29288668,58046.0,58036.0,0.004]
[1725388467921,0.24,58040.0,58034.0,0.3608]
[1725388468129,0.00748164,58040.0,58034.0,0.3608]
[1725388468422,0.189,58045.0,58044.0,0.086163]
[1725388468616,0.188,58045.0,58044.0,0.326163]
[1725388469015,0.188,58045.0,58039.0,0.36105837]
[1725388469016,0.428,58045.0,58040.0,0.086168]
[1725388469217,0.514162,58045.0,58039.0,0.36105837]
[1725388469718,0.514162,58045.0,58039.0,0.00025837]
[1725388469719,0.24,58041.0,58039.0,0.00025837]
[1725388470116,0.086169,58040.0,58039.0,0.00025837]
[1725388470741,1.203049,58040.0,58039.0,0.00025837]
[1725388471617,0.086169,58040.0,58039.0,0.00025837]
[1725388471818,0.608049,58040.0,58039.0,0.00025837]
[1725388472018,0.613049,58040.0,58039.0,0.00025837]
[1725388472627,0.613449,58040.0,58039.0,0.00025837]
[1725388473422,1.213449,58040.0,58039.0,0.00025837]
[1725388474926,0.0104,58040.0,58039.0,0.08642837]
[1725388478228,0.0104,58040.0,58039.0,0.44722837]
[1725388478832,0.0104,58040.0,58039.0,0.08642837]
[1725388479231,0.0104,58040.0,58039.0,0.53339837]
[1725388479425,0.0104,58040.0,58039.0,1.73644837]
[1725388480425,0.0104,58040.0,58039.0,1.13644837]
[1725388480628,0.0104,58040.0,58039.0,0.44722837]
[1725388480836,0.0054,58040.0,58039.0,0.53539837]
[1725388481833,0.0054,58040.0,58039.0,0.45022837]
[1725388481834,0.0004,58040.0,58039.0,0.45022837]
[1725388482526,0.326569,58040.0,58039.0,0.00325837]
[1725388482730,0.326569,58040.0,58039.0,0.00125837]
[1725388482928,0.331569,58040.0,58039.0,0.09242837]
[1725388483526,0.331569,58040.0,58039.0,0.08642837]
[1725388483727,0.336569,58040.0,58039.0,0.08642837]
[1725388483929,0.34755078,58040.0,58039.0,0.08642837]
[1725388484424,0.34755078,58040.0,58039.0,0.00025837]
[1725388484630,0.86443078,58040.0,58039.0,0.00025837]
[1725388485031,0.34755078,58040.0,58039.0,0.00025837]
[1725388486126,0.08618,58032.0,58031.0,0.004]
[1725388486331,0.08618,58032.0,58026.0,0.41625554]
[1725388486332,0.24,58032.0,58026.0,0.3608]
[1725388486631,0.0004,58027.0,58026.0,0.3608]
[1725388487039,0.0004,58027.0,58026.0,0.446989]
[1725388487334,0.082585,58029.0,58026.0,0.446989]
[1725388487541,0.082585,58029.0,58026.0,0.455989]
[1725388488943,0.086187,58028.0,58026.0,0.455989]
[1725388489143,0.001,58027.0,58026.0,0.464989]
[1725388489335,0.087188,58027.0,58026.0,0.3788]
[1725388489847,0.086188,58027.0,58026.0,0.3698]
[1725388490141,0.086188,58027.0,58026.0,0.3788]
[1725388490744,0.1842,58030.0,58029.0,0.086185]
[1725388490936,0.086184,58030.0,58027.0,0.326187]
[1725388491245,0.086185,58029.0,58028.0,0.086186]
[1725388492042,0.086187,58028.0,58026.0,0.3788]
[1725388492442,0.080187,58028.0,58026.0,0.455989]
[1725388492741,0.320187,58028.0,58026.0,0.455989]
[1725388492942,0.320187,58028.0,58026.0,0.3608]
[1725388492943,0.078188,58027.0,58026.0,0.3608]
[1725388493145,0.078188,58027.0,58026.0,0.3698]
[1725388493444,1.281376,58027.0,58026.0,0.009]
[1725388493645,1.557864,58027.0,58026.0,0.00900001]
[1725388493850,1.557864,58027.0,58021.0,0.00025837]
[1725388493851,0.086195,58022.0,58021.0,0.00025837]
[1725388494140,0.677995,58022.0,58021.0,0.00025837]
[1725388494339,0.678395,58022.0,58021.0,0.00025837]
[1725388495042,1.555435,58022.0,58021.0,0.00025837]
[1725388495245,0.678395,58022.0,58021.0,0.00025837]
[1725388495640,0.677395,58022.0,58021.0,0.00025837]
[1725388496147,0.08621,58012.0,58011.0,0.004]
[1725388496345,0.36980571,58022.0,58012.0,0.086209]
[1725388496539,0.0004,58012.0,58011.0,0.086212]
[1725388496847,0.03874941,58022.0,58021.0,0.086197]
[1725388497038,0.03874941,58022.0,58021.0,0.446997]
[1725388497235,0.028,58022.0,58021.0,0.686997]
[1725388497747,0.014,58022.0,58021.0,0.686997]
[1725388498841,0.01078127,58024.0,58022.0,0.086194]
[1725388499044,0.00025837,58027.0,58022.0,0.086194]
[1725388499240,0.08644637,58027.0,58022.0,0.086194]
[1725388499842,0.09766826,58027.0,58022.0,0.086194]
[1725388500149,0.013,58024.0,58022.0,0.086194]
[1725388500446,0.013,58024.0,58021.0,0.00096]
[1725388500639,0.013,58024.0,58016.0,0.36105837]
[1725388500640,0.086197,58021.0,58016.0,0.36105837]
[1725388500842,0.24,58021.0,58016.0,0.36105837]
[1725388501154,0.326203,58017.0,58016.0,0.36105837]
[1725388501348,0.326203,58017.0,58016.0,0.00025837]
[1725388501539,0.773206,58017.0,58016.0,0.00025837]
[1725388501743,1.804083,58017.0,58016.0,0.00025837]
[1725388501941,1.204083,58017.0,58016.0,0.00025837]
[1725388502249,0.699993,58024.0,58016.0,0.00025837]
[1725388502547,0.013,58024.0,58023.0,0.086194]
[1725388502940,0.014,58024.0,58023.0,0.086194]
[1725388503546,0.01148026,58027.0,58026.0,0.086189]
[1725388504149,0.01148026,58027.0,58026.0,0.326189]
[1725388504347,0.00025837,58027.0,58026.0,0.326189]
[1725388505052,0.01325837,58027.0,58026.0,0.326189]
[1725388506139,0.01625837,58027.0,58026.0,0.386189]
[1725388506337,0.01625837,58027.0,58026.0,0.472378]
[1725388506537,0.01625837,58027.0,58026.0,0.989378]
[1725388506740,0.01025837,58027.0,58026.0,0.386189]
[1725388506944,0.01425837,58027.0,58026.0,0.386189]
[1725388507446,0.01125837,58027.0,58026.0,1.589378]
[1725388508047,0.01225837,58027.0,58026.0,1.503189]
[1725388508242,0.01225837,58027.0,58026.0,0.903189]
[1725388508453,0.01225837,58027.0,58026.0,0.989378]
[1725388508750,0.01225837,58027.0,58026.0,1.589378]
[1725388508952,0.086169,58040.0,58039.0,0.08617]
[1725388509545,0.01121672,58040.0,58039.0,0.08617]
[1725388509751,0.00875,58042.0,58038.0,0.3608]
[1725388509752,0.086164,58043.0,58041.0,0.086167]
[1725388509953,0.09482112,58042.0,58041.0,0.086167]
[1725388510157,0.086166,58042.0,58041.0,0.086167]
[1725388510755,0.09495999,58042.0,58041.0,0.086167]
[1725388511051,0.10895999,58042.0,58041.0,0.086167]
[1725388511747,0.10895999,58042.0,58041.0,0.087167]
[1725388511949,0.12195999,58042.0,58041.0,0.088167]
[1725388512543,0.15195999,58042.0,58041.0,0.088167]
[1725388512741,0.13895999,58042.0,58041.0,0.087167]
[1725388512940,0.15095999,58042.0,58041.0,0.088167]
[1725388513140,0.11768857,58042.0,58041.0,0.088167]
[1725388514350,0.30647329,58042.0,58041.0,0.088167]
[1725388514855,0.29447329,58042.0,58041.0,0.087167]
[1725388515053,0.30747329,58042.0,58041.0,0.088167]
[1725388515453,0.11868857,58042.0,58041.0,0.088167]
[1725388515857,0.11768857,58042.0,58041.0,0.088167]
[1725388516457,0.18686872,58042.0,58041.0,0.088167]
[1725388516653,0.10889458,58042.0,58041.0,0.174334]
[1725388517055,0.10889458,58042.0,58041.0,0.088167]
[1725388517354,1.39810658,58042.0,58041.0,0.002]
[1725388517547,1.35974732,58042.0,58041.0,0.001]
[1725388517748,0.25686732,58042.0,58041.0,0.002]
[1725388517951,0.19506058,58042.0,58041.0,0.002]
[1725388518253,0.16906058,58042.0,58040.0,0.086168]
[1725388518459,0.143166,58042.0,58041.0,0.002]
[1725388518653,0.19606139,58042.0,58041.0,0.002]
[1725388518858,0.25786813,58042.0,58041.0,0.002]
[1725388519155,0.25686813,58042.0,58041.0,0.002]
[1725388519349,0.19506139,58042.0,58041.0,0.002]
[1725388519550,0.19506251,58042.0,58041.0,0.002]
[1725388520060,0.18306251,58042.0,58041.0,0.087167]
[1725388520360,0.18306251,58042.0,58041.0,0.088167]
[1725388520361,0.49506251,58042.0,58041.0,0.088167]
[1725388520658,0.49506251,58042.0,58041.0,0.002]
[1725388520851,1.68410851,58042.0,58041.0,0.001]
[1725388521053,0.086173,58037.0,58036.0,0.00025837]
[1725388521254,0.747373,58037.0,58036.0,0.00025837]
[1725388521554,0.747373,58037.0,58026.0,0.09896]
[1725388521555,0.086185,58029.0,58026.0,0.090189]
[1725388521860,0.3,58027.0,58024.0,0.36184]
[1725388522058,0.0004,58025.0,58024.0,0.3608]
[1725388522560,0.085191,58025.0,58024.0,0.3608]
[1725388523356,0.097191,58025.0,58024.0,0.3618]
[1725388523762,0.10807178,58025.0,58024.0,0.3618]
[1725388523959,0.10807178,58025.0,58024.0,0.001]
[1725388524161,0.10807178,58025.0,58012.0,0.3]
[1725388524162,0.51708,58024.0,58010.0,0.004]
[1725388524365,0.51708,58024.0,58003.0,0.086223]
[1725388524366,0.299,58010.0,58003.0,0.086223]
[1725388524662,0.3,58004.0,58000.0,0.447028]
[1725388524857,0.3,58004.0,58000.0,0.3608]
[1725388524858,0.299,58004.0,58000.0,0.3608]
[1725388525250,0.085224,58003.0,58000.0,0.3608]
[1725388525858,0.301,58004.0,58000.0,0.3798]
[1725388526165,0.002,58004.0,58001.0,0.086225]
[1725388526465,0.002,58004.0,58003.0,0.386223]
[1725388526674,0.001,58004.0,58003.0,0.386223]
[1725388527461,0.001,58004.0,58003.0,0.086223]
[1725388527654,0.0002586,58007.0,58004.0,0.086221]
[1725388527852,0.0002586,58007.0,58005.0,0.3608]
[1725388528164,0.0002586,58007.0,58006.0,0.086219]
[1725388528849,0.0142586,58007.0,58006.0,0.086219]
[1725388529053,0.0252586,58007.0,58006.0,0.086219]
[1725388529653,0.0142586,58007.0,58006.0,0.086219]
[1725388529853,0.0252586,58007.0,58006.0,0.087219]
[1725388530062,0.0252586,58007.0,58006.0,0.844419]
[1725388530258,0.0252586,58007.0,58006.0,1.45526528]
[1725388530460,0.0112586,58007.0,58006.0,1.54148428]
[1725388530658,0.0252586,58007.0,58006.0,1.54248428]
[1725388531157,0.0002586,58007.0,58006.0,1.54048428]
[1725388531357,0.0102586,58007.0,58006.0,1.529638]
[1725388531558,0.0102586,58007.0,58006.0,1.443419]
[1725388531852,0.0102586,58007.0,58005.0,0.3608]
[1725388532052,0.086222,58004.0,57998.0,0.3608]
[1725388532257,0.0004,57999.0,57998.0,0.3608]
[1725388532461,0.0004,57999.0,57998.0,0.447031]
[1725388532655,0.086225,58003.0,58001.0,0.086226]
[1725388533364,0.086225,58003.0,58002.0,0.086225]
[1725388533561,0.1973386,58007.0,58004.0,0.086221]
[1725388533763,0.0092586,58007.0,58006.0,0.086219]
[1725388534057,0.0042586,58007.0,58006.0,0.086219]
[1725388534474,0.0002586,58007.0,58006.0,0.086219]
[1725388535159,0.0142586,58007.0,58006.0,0.087219]
[1725388535366,0.0282586,58007.0,58006.0,0.087219]
[1725388536068,0.0282586,58007.0,58006.0,0.001]
[1725388536069,0.1144766,58007.0,58006.0,0.001]
[1725388536664,0.0282586,58007.0,58006.0,0.087219]
[1725388537166,0.0282586,58007.0,58006.0,0.088219]
[1725388537863,0.0282586,58007.0,58006.0,0.180219]
[1725388538459,0.0282586,58007.0,58006.0,0.266438]
[1725388539468,0.0282586,58007.0,58006.0,0.180219]
[1725388540475,0.0282586,58007.0,58006.0,1.383638]
[1725388540786,0.09476469,58024.0,58023.0,0.086194]
[1725388541069,0.10584184,58024.0,58023.0,0.086194]
[1725388541973,0.01107715,58024.0,58023.0,0.086194]
[1725388542171,0.014,58024.0,58023.0,0.087194]
[1725388542472,0.028,58024.0,58023.0,0.088194]
[1725388544368,0.014,58024.0,58023.0,0.087194]
[1725388544673,0.017,58024.0,58023.0,0.088194]
[1725388545665,0.009,58024.0,58023.0,0.088194]
[1725388548878,0.009,58024.0,58023.0,0.174388]
[1725388549772,0.009,58024.0,58023.0,0.260582]
[1725388549976,0.009,58024.0,58023.0,0.31197335]
[1725388550171,0.0002586,58029.0,58028.0,0.086186]
[1725388550470,0.0002586,58029.0,58028.0,0.746986]
[1725388550671,0.0002586,58029.0,58028.0,0.086186]
[1725388551265,0.0002586,58029.0,58028.0,0.446986]
[1725388551466,0.0082586,58029.0,58028.0,0.834172]
[1725388551873,0.0092586,58029.0,58028.0,0.748986]
[1725388554081,0.0092586,58029.0,58028.0,0.688986]
[1725388554476,0.0092586,58029.0,58028.0,0.088186]
[1725388555082,0.0954436,58029.0,58028.0,0.002]
[1725388555271,0.1816286,58029.0,58028.0,0.002]
[1725388555471,0.0954436,58029.0,58028.0,0.002]
[1725388558181,0.1816286,58029.0,58028.0,0.002]
[1725388558381,0.0954436,58029.0,58028.0,0.002]
[1725388558679,0.1816286,58029.0,58028.0,0.002]
[1725388559280,1.5470586,58029.0,58015.0,0.05139135]
[1725388559587,0.7736,58019.0,58018.0,0.0002586]
[1725388559787,0.8936,58019.0,58018.0,0.0002586]
[1725388560378,0.8074,58019.0,58018.0,0.0002586]
[1725388560581,0.3612,58019.0,58018.0,0.0884596]
[1725388561076,0.4484,58019.0,58018.0,0.0022586]
[1725388563381,0.0014,58019.0,58018.0,0.4492596]
[1725388563585,0.01228735,58019.0,58018.0,0.4492596]
[1725388563883,0.01228735,58019.0,58018.0,0.0022586]
[1725388563884,0.3276,58019.0,58018.0,0.0022586]
[1725388564086,0.7746,58019.0,58018.0,0.0022586]
[1725388564388,0.8846,58019.0,58018.0,0.0022586]
[1725388564787,1.074,58019.0,58018.0,0.0022586]
[1725388565687,0.17243,58009.0,58004.0,0.05539135]
[1725388565995,0.086222,58005.0,58000.0,0.3608]
[1725388566292,0.2404,58001.0,58000.0,0.3608]
[1725388566584,0.2404,58001.0,58000.0,0.447028]
[1725388567193,0.2404,58001.0,58000.0,0.3608]
[1725388567493,0.2404,58001.0,57997.0,0.13762235]
[1725388567687,0.447426,58001.0,58000.0,0.003]
[1725388567898,0.687026,58001.0,58000.0,0.003]
[1725388568095,1.290492,58001.0,58000.0,0.003]
[1725388568306,1.204266,58001.0,58000.0,0.003]
[1725388568606,1.804266,58001.0,58000.0,0.003]
[1725388568896,0.086234,57996.0,57995.0,0.0002586]
[1725388569196,0.6012,57996.0,57995.0,0.0002586]
[1725388569381,0.6002,57996.0,57995.0,0.0002586]
[1725388569690,0.3602,57996.0,57995.0,0.0002586]
[1725388569880,0.3542,57996.0,57995.0,0.0002586]
[1725388570078,0.5942,57996.0,57995.0,0.0002586]
[1725388570484,0.3592,57996.0,57995.0,0.0012586]
[1725388570692,0.0054,57996.0,57995.0,0.0874936]
[1725388571389,0.0094,57996.0,57995.0,0.0874936]
[1725388571600,0.2494,57996.0,57995.0,0.0874936]
[1725388571993,0.6102,57996.0,57995.0,0.0012586]
[1725388572191,0.696434,57996.0,57995.0,0.0012586]
[1725388572388,1.87338,57996.0,57988.0,0.3608]
[1725388572582,0.086247,57987.0,57984.0,0.086251]
[1725388572784,0.0004,57985.0,57984.0,0.086251]
[1725388573192,0.60208,57989.0,57985.0,0.08625]
[1725388573388,0.687445,57989.0,57981.0,0.086256]
[1725388573591,0.0004,57982.0,57981.0,0.086256]
[1725388575498,0.0004,57982.0,57981.0,0.326256]
[1725388575703,0.0004,57982.0,57981.0,1.529912]
[1725388576199,0.0014,57982.0,57981.0,1.536912]
[1725388576589,0.0014,57982.0,57981.0,1.540912]
[1725388577188,0.0014,57982.0,57981.0,0.423512]
[1725388577588,0.0014,57982.0,57981.0,0.183512]
[1725388577797,0.0014,57982.0,57981.0,0.097256]
[1725388578003,0.2414,57982.0,57981.0,0.097256]
[1725388578699,0.327655,57982.0,57981.0,0.011]
[1725388580099,0.327655,57982.0,57981.0,0.007]
[1725388580399,0.335655,57982.0,57981.0,0.008]
[1725388580903,0.339655,57982.0,57981.0,0.002]
[1725388583801,0.0134,57982.0,57981.0,0.088256]
[1725388585203,0.0134,57982.0,57981.0,0.328256]
[1725388586103,0.0134,57982.0,57981.0,0.414512]
[1725388590304,0.0111987,57986.0,57985.0,0.1725]
[1725388590507,0.0004,57989.0,57988.0,0.086246]
[1725388590705,0.01116429,57989.0,57988.0,0.687046]
[1725388590905,0.0004,57989.0,57988.0,0.859538]
[1725388591811,0.24,57995.0,57990.0,0.086243]
[1725388592300,0.086238,57994.0,57990.0,0.086243]
[1725388593001,0.01149134,57991.0,57990.0,0.086243]
[1725388593308,0.0072586,57991.0,57990.0,0.087243]
[1725388593608,0.0182586,57991.0,57990.0,0.088243]
[1725388594706,0.0052586,57991.0,57990.0,0.087243]
[1725388594910,0.0132586,57991.0,57990.0,0.088243]
[1725388595119,0.0132586,57991.0,57990.0,0.15713465]
[1725388595404,0.0132586,57991.0,57990.0,0.174486]
[1725388595604,0.0052586,57991.0,57990.0,0.173486]
[1725388595816,0.0132586,57991.0,57990.0,0.174486]
[1725388596505,0.0192586,57991.0,57990.0,0.174486]
[1725388596899,0.0082586,57991.0,57990.0,0.173486]
[1725388597095,0.0182586,57991.0,57990.0,0.088243]
[1725388597311,0.2244996,57991.0,57990.0,0.088243]
[1725388597507,0.2244996,57991.0,57990.0,0.15706143]
[1725388597812,0.2244996,57991.0,57990.0,0.15706749]
[1725388598015,0.2144996,57991.0,57990.0,0.087243]
[1725388598207,0.2244996,57991.0,57990.0,0.088243]
[1725388598409,0.1302586,57991.0,57990.0,0.087243]
[1725388598614,0.1382586,57991.0,57990.0,0.088243]
[1725388599107,0.2244996,57991.0,57990.0,0.088243]
[1725388599307,0.2254996,57991.0,57990.0,0.088243]
[1725388599695,0.2254996,57991.0,57990.0,0.002]
[1725388599696,0.6725406,57991.0,57990.0,0.002]
[1725388600606,0.6735406,57991.0,57990.0,0.002]
[1725388601403,0.6725406,57991.0,57990.0,0.0536437]
[1725388602212,0.086247,57987.0,57986.0,0.06884697]
[1725388602404,0.542894,57987.0,57986.0,0.05167121]
[1725388602605,0.172498,57986.0,57985.0,0.05167121]
[1725388602806,0.172498,57986.0,57978.0,0.31475882]
[1725388602807,0.086256,57981.0,57979.0,0.06902128]
[1725388603012,0.447458,57980.0,57979.0,0.06902128]
[1725388603211,0.447058,57980.0,57979.0,0.00017431]
[1725388603504,0.533316,57980.0,57979.0,0.00017431]
[1725388603702,0.446058,57980.0,57979.0,0.00017431]
[1725388604415,0.446058,57980.0,57979.0,0.07002128]
[1725388604915,0.446058,57980.0,57979.0,0.00117431]
[1725388605103,0.446058,57980.0,57979.0,0.07005055]
[1725388606420,0.449058,57980.0,57979.0,0.07005055]
[1725388606624,0.3739996,57980.0,57979.0,0.15530955]
[1725388606919,0.3789996,57980.0,57979.0,0.39530955]
[1725388607717,0.0191996,57980.0,57979.0,0.75610955]
[1725388607916,0.0004,57986.0,57985.0,0.08625]
[1725388608121,0.04165788,57986.0,57985.0,0.32625]
[1725388608314,0.0304,57986.0,57985.0,0.39511286]
[1725388609026,0.0084,57986.0,57985.0,0.32625]
[1725388609213,0.0084,57986.0,57985.0,0.4125]
[1725388610423,0.0164,57986.0,57985.0,0.4135]
[1725388614138,0.0164,57986.0,57985.0,0.49975]
[1725388614427,0.0164,57986.0,57985.0,0.52671755]
[1725388615619,0.0094,57986.0,57985.0,0.53371755]
[1725388616015,0.0094,57986.0,57985.0,0.75125484]
[1725388616319,0.0094,57986.0,57985.0,0.75125568]
[1725388616717,0.0094,57986.0,57985.0,0.61983212]
[1725388616918,0.0094,57986.0,57985.0,0.75125545]
[1725388617224,0.0014,57986.0,57985.0,0.59586457]
[1725388617519,0.0004,57986.0,57985.0,0.53271642]
[1725388618024,0.0004,57986.0,57985.0,0.61883099]
[1725388618324,0.0004,57986.0,57985.0,0.54464307]
[1725388619025,0.0004,57986.0,57985.0,0.54364307]
[1725388619427,0.0004,57986.0,57985.0,0.54164307]
[1725388620223,0.0004,57986.0,57985.0,0.54064307]
[1725388620620,0.0004,57986.0,57985.0,0.52671642]
[1725388620820,0.0004,57986.0,57985.0,0.53071642]
[1725388621022,0.0004,57986.0,57985.0,0.44446642]
[1725388621220,0.0004,57986.0,57985.0,0.4175]
[1725388621422,0.0004,57986.0,57985.0,0.44046745]
[1725388621728,0.0004,57986.0,57985.0,0.44346755]
[1725388621930,0.0002586,57991.0,57990.0,0.258729]
[1725388622223,0.0002586,57991.0,57990.0,1.19005582]
[1725388622423,0.0002586,57991.0,57990.0,1.49005591]
[1725388622630,0.0002586,57991.0,57990.0,2.09005591]
[1725388622823,0.0002586,57991.0,57990.0,1.49005599]
[1725388623124,0.0002586,57991.0,57990.0,2.44365628]
[1725388623519,0.0002586,57991.0,57990.0,2.48916621]
[1725388623727,0.0002586,57991.0,57990.0,2.57501247]
[1725388623925,0.004,58002.0,57990.0,2.57501247]
[1725388623926,0.004,58002.0,58001.0,0.172452]
[1725388624123,0.172437,58007.0,58006.0,0.086219]
[1725388624318,0.186218,58007.0,58006.0,0.086219]
[1725388624524,0.19699585,58007.0,58006.0,0.086219]
[1725388625536,0.53721485,58007.0,58006.0,0.001]
[1725388625733,1.74063385,58007.0,58006.0,0.001]
[1725388626029,1.66141485,58007.0,58006.0,0.002]
[1725388626430,2.64141485,58007.0,58006.0,0.002]
[1725388626831,2.72763385,58007.0,58006.0,0.002]
[1725388630026,0.258675,58002.0,58001.0,0.0002586]
[1725388630227,0.258675,58002.0,57992.0,0.004]
[1725388630228,0.086238,57993.0,57992.0,0.004]
[1725388630426,0.2404,57993.0,57985.0,0.3608]